bitfinex/quotes_BTCUSD_20230103
["timestamp","ask_amount","ask_price","bid_price","bid_amount"]
[1672726085358,10.21387986,16773.0,16772.0,0.84386158]
[1672726085359,2.41387986,16773.0,16772.0,0.84386158]
[1672726085651,2.41387986,16773.0,16772.0,1.45917841]
[1672726085861,2.41387986,16773.0,16772.0,2.16515059]
[1672726086120,2.41387986,16773.0,16772.0,0.84379241]
[1672726086404,2.41387986,16773.0,16772.0,1.54379241]
[1672726086629,2.72237986,16773.0,16772.0,1.02169273]
[1672726087119,2.72237986,16773.0,16772.0,2.34262574]
[1672726087357,3.22237986,16773.0,16772.0,1.02169273]
[1672726087615,2.72237986,16773.0,16772.0,1.02169273]
[1672726088614,2.11904535,16773.0,16772.0,0.16179273]
[1672726088858,2.72260132,16773.0,16772.0,0.16179273]
[1672726089355,2.72260132,16773.0,16772.0,0.74856824]
[1672726090883,2.72260132,16773.0,16772.0,1.44856824]
[1672726096976,2.72260132,16773.0,16772.0,0.74856824]
[1672726097281,2.99517118,16773.0,16772.0,0.16179273]
[1672726097531,2.39161521,16773.0,16772.0,0.16179273]
[1672726097779,2.90355119,16773.0,16772.0,0.16179273]
[1672726098277,3.23447294,16773.0,16772.0,0.16179273]
[1672726098529,2.63098133,16773.0,16772.0,0.16179273]
[1672726099294,2.63098133,16773.0,16772.0,0.00269273]
[1672726100296,3.23444034,16773.0,16772.0,0.00269273]
[1672726100543,2.63098133,16773.0,16772.0,0.00269273]
[1672726101031,3.23446022,16773.0,16772.0,0.00269273]
[1672726102049,2.63098133,16773.0,16772.0,0.00269273]
[1672726102302,3.23443814,16773.0,16772.0,0.00269273]
[1672726102555,2.63098133,16773.0,16772.0,0.00269273]
[1672726102817,3.13098133,16773.0,16772.0,0.00269273]
[1672726103094,3.7313836,16773.0,16772.0,0.00269273]
[1672726104622,3.13098133,16773.0,16772.0,0.00269273]
[1672726108468,10.63098133,16773.0,16772.0,0.00269273]
[1672726108723,10.63098133,16773.0,16772.0,0.00261048]
[1672726109721,10.64893328,16773.0,16772.0,0.00261048]
[1672726116251,10.64893328,16773.0,16772.0,0.00252591]
[1672726118915,10.64885203,16773.0,16772.0,0.00252591]
[1672726122726,3.14885203,16773.0,16772.0,0.00252591]
[1672726123480,10.64885203,16773.0,16772.0,0.00252591]
[1672726124250,3.14885203,16773.0,16772.0,0.00252591]
[1672726126264,3.13090008,16773.0,16772.0,0.00252591]
[1672726135237,3.13090008,16773.0,16772.0,0.03252591]
[1672726142152,3.13090008,16773.0,16772.0,0.03245196]
[1672726142398,2.63090008,16773.0,16772.0,0.03245196]
[1672726142901,2.63090008,16773.0,16772.0,0.06394186]
[1672726143182,3.13090008,16773.0,16772.0,0.06394186]
[1672726143703,10.63090008,16773.0,16772.0,0.06394186]
[1672726144234,10.13090008,16773.0,16772.0,0.06394186]
[1672726144769,2.63090008,16773.0,16772.0,0.06394186]
[1672726147031,3.13090008,16773.0,16772.0,0.06394186]
[1672726147272,2.63090008,16773.0,16772.0,0.06394186]
[1672726147529,3.13090008,16773.0,16772.0,0.06394186]
[1672726147779,2.63090008,16773.0,16772.0,0.06394186]
[1672726148022,1.2142681,16773.0,16772.0,0.93414882]
[1672726148518,1.81872273,16773.0,16772.0,0.93414882]
[1672726149016,1.81872273,16773.0,16772.0,1.63414882]
[1672726149773,2.11872273,16773.0,16772.0,1.63414882]
[1672726154222,2.11872273,16773.0,16772.0,1.31584882]
[1672726154426,2.12722273,16773.0,16772.0,0.76394186]
[1672726154669,1.5227681,16773.0,16772.0,0.76394186]
[1672726155442,2.12687304,16773.0,16772.0,0.76394186]
[1672726157465,2.12687304,16773.0,16772.0,1.41335201]
[1672726158424,2.12647145,16773.0,16772.0,1.57335201]
[1672726159183,2.62647145,16773.0,16772.0,1.57335201]
[1672726159436,2.12647145,16773.0,16772.0,1.57335201]
[1672726167415,1.52236651,16773.0,16772.0,1.57335201]
[1672726167695,2.12647145,16773.0,16772.0,1.57335201]
[1672726173461,2.12647145,16773.0,16772.0,0.87335201]
[1672726175245,2.12647145,16773.0,16772.0,1.57335201]
[1672726178127,2.12647145,16773.0,16772.0,1.41335201]
[1672726178388,2.12647145,16773.0,16772.0,1.4132667]
[1672726179721,2.12638152,16773.0,16772.0,1.4132667]
[1672726181181,2.12638152,16773.0,16772.0,0.7132667]
[1672726181446,2.12638152,16773.0,16772.0,1.4132667]
[1672726183686,2.11788152,16773.0,16772.0,1.4132667]
[1672726185466,1.51377658,16773.0,16772.0,0.76385655]
[1672726188768,2.80266387,16773.0,16772.0,0.06385655]
[1672726188984,3.68147057,16773.0,16772.0,0.06385655]
[1672726190135,3.27633879,16773.0,16772.0,0.06385655]
[1672726191577,2.39753209,16773.0,16772.0,0.06385655]
[1672726191822,2.89753209,16773.0,16772.0,0.06385655]
[1672726192392,10.39753209,16773.0,16772.0,0.06385655]
[1672726193321,2.89753209,16773.0,16772.0,0.06385655]
[1672726193569,2.89753209,16773.0,16772.0,0.05885655]
[1672726197355,10.39753209,16773.0,16772.0,0.05885655]
[1672726198596,10.99793436,16773.0,16772.0,0.05885655]
[1672726198838,10.39753209,16773.0,16772.0,0.05885655]
[1672726200353,2.89753209,16773.0,16772.0,0.05885655]
[1672726200860,10.39753209,16773.0,16772.0,0.05885655]
[1672726201633,10.23913209,16773.0,16772.0,0.05885655]
[1672726201897,2.73913209,16773.0,16772.0,0.05885655]
[1672726203671,2.23913209,16773.0,16772.0,0.05885655]
[1672726204940,2.22118014,16773.0,16772.0,0.05885655]
[1672726205449,2.23913209,16773.0,16772.0,0.05885655]
[1672726205937,2.63913209,16773.0,16772.0,0.05885655]
[1672726207427,2.23913209,16773.0,16772.0,0.05885655]
[1672726209998,2.73913209,16773.0,16772.0,0.05885655]
[1672726210255,10.23913209,16773.0,16772.0,0.05885655]
[1672726214233,2.23913209,16773.0,16772.0,0.05885655]
[1672726216814,2.73913209,16773.0,16772.0,0.05885655]
[1672726218056,2.73913209,16773.0,16772.0,0.05875654]
[1672726219257,2.23913209,16773.0,16772.0,0.05875654]
[1672726219803,2.73913209,16773.0,16772.0,0.05875654]
[1672726222310,2.72118014,16773.0,16772.0,0.05875654]
[1672726222807,2.22118014,16773.0,16772.0,0.05875654]
[1672726223329,2.23913209,16773.0,16772.0,0.05875654]
[1672726224086,2.73913209,16773.0,16772.0,0.05875654]
[1672726224335,2.23913209,16773.0,16772.0,0.05875654]
[1672726224848,2.23913209,16773.0,16772.0,0.75875654]
[1672726225095,2.63913209,16773.0,16772.0,0.75875654]
[1672726225337,2.23913209,16773.0,16772.0,0.75875654]
[1672726225595,2.63913209,16773.0,16772.0,0.75875654]
[1672726226363,2.63913209,16773.0,16772.0,0.05875654]
[1672726226604,2.23913209,16773.0,16772.0,0.05875654]
[1672726227357,2.73913209,16773.0,16772.0,0.05875654]
[1672726228358,2.23913209,16773.0,16772.0,0.05875654]
[1672726235653,2.22118014,16773.0,16772.0,0.75875654]
[1672726238299,2.22118014,16773.0,16772.0,0.05875654]
[1672726238802,2.23913209,16773.0,16772.0,0.05875654]
[1672726239054,1.52227658,16773.0,16772.0,0.57262436]
[1672726239784,1.52227658,16773.0,16772.0,1.27262436]
[1672726241548,1.52227658,16773.0,16772.0,0.75875654]
[1672726242440,1.52227658,16773.0,16772.0,1.41361371]
[1672726242697,1.52227658,16773.0,16772.0,1.41350132]
[1672726243874,2.12660731,16773.0,16772.0,1.41350132]
[1672726244118,1.52227658,16773.0,16772.0,1.41350132]
[1672726255979,1.52227658,16773.0,16772.0,0.75864415]
[1672726257756,1.92227658,16773.0,16772.0,0.05864415]
[1672726258045,1.52227658,16773.0,16772.0,0.05864415]
[1672726259036,2.02227658,16773.0,16772.0,0.05864415]
[1672726259534,2.04022853,16773.0,16772.0,0.05864415]
[1672726260025,2.72636978,16773.0,16772.0,0.05864415]
[1672726266276,3.60517648,16773.0,16772.0,0.05864415]
[1672726266771,10.22636978,16773.0,16772.0,0.05864415]
[1672726267568,10.22636978,16773.0,16772.0,0.05852461]
[1672726269566,11.12636978,16773.0,16772.0,0.05852461]
[1672726270620,10.22636978,16773.0,16772.0,0.05852461]
[1672726270823,10.22636978,16773.0,16772.0,0.08186806]
[1672726271078,11.72677205,16773.0,16772.0,0.08186806]
[1672726271855,10.22636978,16773.0,16772.0,0.08186806]
[1672726281923,10.22636978,16773.0,16772.0,0.08176021]
[1672726283398,10.22629959,16773.0,16772.0,0.08176021]
[1672726284931,11.31896504,16773.0,16772.0,0.08176021]
[1672726285197,11.31660494,16773.0,16772.0,0.08176021]
[1672726285991,12.19773782,16773.0,16772.0,0.08176021]
[1672726287238,12.6797471,16773.0,16772.0,0.08176021]
[1672726287480,12.19761042,16773.0,16772.0,0.08176021]
[1672726291752,12.17965847,16773.0,16772.0,0.08176021]
[1672726292518,12.19761042,16773.0,16772.0,0.08176021]
[1672726293017,12.19753517,16773.0,16772.0,0.08176021]
[1672726293743,11.31640229,16773.0,16772.0,0.08176021]
[1672726295261,12.19731898,16773.0,16772.0,0.08176021]
[1672726295506,11.29731898,16773.0,16772.0,0.08176021]
[1672726295754,10.10577259,16773.0,16772.0,0.08176021]
[1672726296007,11.29816459,16773.0,16772.0,0.08176021]
[1672726297748,12.19816459,16773.0,16772.0,0.08176021]
[1672726299006,11.6153679,16773.0,16772.0,0.08176021]
[1672726303241,10.7153679,16773.0,16772.0,0.08176021]
[1672726306717,10.7153579,16773.0,16772.0,0.08176021]
[1672726308486,10.69740595,16773.0,16772.0,0.08176021]
[1672726308746,11.57846629,16773.0,16772.0,0.08176021]
[1672726308984,10.69740595,16773.0,16772.0,0.08176021]
[1672726309270,11.57849001,16773.0,16772.0,0.08176021]
[1672726309505,10.7153579,16773.0,16772.0,0.08176021]
[1672726309751,11.59643857,16773.0,16772.0,0.08176021]
[1672726310012,11.43643857,16773.0,16772.0,0.08176021]
[1672726310749,11.13832857,16773.0,16772.0,0.08176021]
[1672726314716,10.2572479,16773.0,16772.0,0.08176021]
[1672726317748,10.2572479,16773.0,16772.0,0.08165521]
[1672726321024,10.85765017,16773.0,16772.0,0.08165521]
[1672726321837,10.2572479,16773.0,16772.0,0.08165521]
[1672726325799,9.5408013,16773.0,16772.0,0.08165521]
[1672726326052,10.66311915,16773.0,16772.0,0.08165521]
[1672726326297,11.51877255,16773.0,16772.0,0.08165521]
[1672726326787,12.03046186,16773.0,16772.0,0.08165521]
[1672726327280,11.23086413,16773.0,16772.0,0.08165521]
[1672726327808,12.63086413,16773.0,16772.0,0.08165521]
[1672726328805,0.5,16772.0,16770.0,1.2952619]
[1672726329056,3.53069476,16771.0,16770.0,0.0017619]
[1672726329297,3.85460406,16771.0,16770.0,0.0017619]
[1672726330877,4.4600926,16771.0,16770.0,0.0017619]
[1672726331228,4.4600926,16771.0,16770.0,0.0717619]
[1672726331489,4.4600926,16771.0,16770.0,0.0017619]
[1672726331752,4.4670926,16771.0,16770.0,0.0757619]
[1672726332006,5.06749487,16771.0,16770.0,0.0757619]
[1672726333330,4.18583811,16771.0,16770.0,0.0757619]
[1672726333880,11.68583811,16771.0,16770.0,0.0757619]
[1672726336419,11.08034957,16771.0,16770.0,0.0757619]
[1672726336657,11.77001015,16771.0,16770.0,0.0757619]
[1672726338187,12.65114683,16771.0,16770.0,0.0757619]
[1672726338403,12.65114636,16771.0,16770.0,0.0757619]
[1672726338689,11.77001015,16771.0,16770.0,0.0757619]
[1672726338935,12.65105363,16771.0,16770.0,0.0757619]
[1672726339720,4.45518136,16771.0,16770.0,0.0757619]
[1672726339972,2.4244773,16771.0,16770.0,0.62571465]
[1672726340733,1.8197103,16771.0,16770.0,0.62571465]
[1672726340982,1.80175835,16771.0,16770.0,0.62571465]
[1672726341490,1.80175835,16771.0,16770.0,1.24110065]
[1672726342000,1.80175835,16771.0,16770.0,0.62571465]
[1672726342001,1.81025835,16771.0,16770.0,0.62571465]
[1672726342519,1.81025835,16771.0,16770.0,1.32571465]
[1672726342786,2.11025835,16771.0,16770.0,1.32571465]
[1672726346574,2.7141746,16771.0,16770.0,1.32571465]
[1672726346825,2.71415499,16771.0,16770.0,1.32571465]
[1672726347070,2.11025835,16771.0,16770.0,1.32571465]
[1672726348374,2.71411853,16771.0,16770.0,1.32571465]
[1672726348607,2.79411853,16771.0,16770.0,1.32571465]
[1672726349859,2.19025835,16771.0,16770.0,1.32571465]
[1672726350111,2.79407189,16771.0,16770.0,1.32571465]
[1672726350361,2.19025835,16771.0,16770.0,1.32571465]
[1672726350610,0.596267,16771.0,16770.0,0.7757619]
[1672726350869,0.60223003,16771.0,16770.0,0.7757619]
[1672726351134,0.60223003,16771.0,16770.0,1.3911479]
[1672726351392,0.60223003,16771.0,16770.0,1.33483522]
[1672726351635,0.60223003,16771.0,16770.0,1.84169222]
[1672726352432,0.90223003,16771.0,16770.0,1.84169222]
[1672726352726,0.91073003,16771.0,16770.0,1.84169222]
[1672726354391,2.10326403,16771.0,16770.0,1.84169222]
[1672726357080,2.10326403,16771.0,16770.0,1.14169222]
[1672726358328,2.10326403,16771.0,16770.0,1.84169222]
[1672726358565,2.70687099,16771.0,16770.0,1.84169222]
[1672726359045,2.10326403,16771.0,16770.0,1.84169222]
[1672726361728,2.70687099,16771.0,16770.0,1.84169222]
[1672726368049,2.10326403,16771.0,16770.0,1.84169222]
[1672726368336,2.70687099,16771.0,16770.0,1.84169222]
[1672726368563,2.70687099,16771.0,16770.0,1.14169222]
[1672726369676,2.70687099,16771.0,16770.0,1.84169222]
[1672726370952,2.72482294,16771.0,16770.0,1.84169222]
[1672726373394,2.72482294,16771.0,16770.0,1.84157741]
[1672726374147,3.12482294,16771.0,16770.0,1.28250409]
[1672726374390,3.12472099,16771.0,16770.0,1.28250409]
[1672726374641,2.52111403,16771.0,16770.0,1.28250409]
[1672726376673,2.52111403,16771.0,16770.0,0.58250409]
[1672726378205,3.12786444,16771.0,16770.0,0.58250409]
[1672726380684,4.00890792,16771.0,16770.0,0.58250409]
[1672726380940,3.12786444,16771.0,16770.0,0.58250409]
[1672726381148,4.00890792,16771.0,16770.0,0.58250409]
[1672726381864,3.12786444,16771.0,16770.0,0.58250409]
[1672726382122,4.00890792,16771.0,16770.0,0.58250409]
[1672726383180,4.06909109,16771.0,16770.0,0.58250409]
[1672726385246,5.34359363,16771.0,16770.0,0.58250409]
[1672726385494,4.52079718,16771.0,16770.0,0.26825309]
[1672726386006,3.80273188,16771.0,16770.0,0.26825309]
[1672726386510,3.93773188,16771.0,16770.0,0.26925309]
[1672726387523,3.93873188,16771.0,16770.0,0.26925309]
[1672726387775,11.30273188,16771.0,16770.0,0.26825309]
[1672726388024,11.08794387,16771.0,16770.0,0.26925309]
[1672726388277,12.01738653,16771.0,16770.0,0.26925309]
[1672726388532,12.51738653,16771.0,16770.0,0.26925309]
[1672726389070,13.3975668,16771.0,16770.0,0.26925309]
[1672726390831,13.3975668,16771.0,16766.0,0.00318568]
[1672726390832,0.5,16770.0,16766.0,0.00318568]
[1672726391088,0.60336437,16767.0,16766.0,0.70318568]
[1672726391344,0.9093274,16767.0,16766.0,0.70318568]
[1672726391591,0.93577935,16767.0,16766.0,1.29486382]
[1672726392118,0.93577935,16767.0,16766.0,1.29471382]
[1672726392419,1.66518835,16767.0,16766.0,1.29571382]
[1672726393658,1.66518835,16767.0,16766.0,0.70403568]
[1672726394164,2.26159735,16767.0,16766.0,0.00403568]
[1672726395977,2.85800635,16767.0,16766.0,0.00403568]
[1672726397014,3.31228397,16767.0,16766.0,0.00403568]
[1672726397268,2.85800635,16767.0,16766.0,0.00403568]
[1672726400376,2.25464198,16767.0,16766.0,0.00403568]
[1672726405181,2.85800635,16767.0,16766.0,0.00403568]
[1672726405464,2.25464198,16767.0,16766.0,0.00403568]
[1672726406769,2.85800635,16767.0,16766.0,0.00403568]
[1672726413358,2.85800635,16767.0,16766.0,0.53864311]
[1672726413881,2.25464198,16767.0,16766.0,0.53864311]
[1672726414491,1.65823298,16767.0,16766.0,1.23864311]
[1672726415246,2.26159735,16767.0,16766.0,1.23854548]
[1672726415499,1.65823298,16767.0,16766.0,1.23854548]
[1672726415991,1.65823298,16767.0,16766.0,1.85393148]
[1672726416251,1.65823298,16767.0,16766.0,1.23854548]
[1672726416777,2.26159735,16767.0,16766.0,1.23854548]
[1672726418777,2.2436454,16767.0,16766.0,1.23854548]
[1672726419801,2.2436454,16767.0,16766.0,1.85393148]
[1672726420542,1.64028103,16767.0,16766.0,1.85393148]
[1672726422324,2.2436454,16767.0,16766.0,1.85393148]
[1672726422825,1.64028103,16767.0,16766.0,1.85393148]
[1672726423076,2.2436454,16767.0,16766.0,1.85393148]
[1672726423383,1.64028103,16767.0,16766.0,1.85393148]
[1672726424635,2.2436454,16767.0,16766.0,1.85393148]
[1672726425927,1.64028103,16767.0,16766.0,1.85393148]
[1672726428218,1.64028103,16767.0,16766.0,1.15393148]
[1672726428521,1.64028103,16767.0,16766.0,0.69854548]
[1672726429252,1.64028103,16767.0,16766.0,1.39854548]
[1672726429999,1.64028103,16767.0,16766.0,2.01393148]
[1672726434797,1.04387203,16767.0,16766.0,1.47932405]
[1672726435058,1.57237026,16767.0,16766.0,2.26982108]
[1672726438080,2.10913826,16767.0,16766.0,2.26982108]
[1672726440866,0.13896303,16767.0,16766.0,1.63932405]
[1672726441157,0.13896303,16767.0,16766.0,2.17848166]
[1672726441378,0.58648653,16767.0,16766.0,2.30072262]
[1672726441647,0.58648653,16767.0,16766.0,2.97081242]
[1672726441903,0.58648653,16767.0,16766.0,2.30072262]
[1672726442162,0.13896303,16767.0,16766.0,2.30072262]
[1672726442939,0.43896303,16767.0,16766.0,2.30072262]
[1672726443449,0.97573103,16767.0,16766.0,2.30072262]
[1672726444199,0.67573103,16767.0,16766.0,2.30072262]
[1672726445060,0.97573103,16767.0,16766.0,2.30072262]
[1672726445321,1.42311901,16767.0,16766.0,2.30072262]
[1672726445585,1.12311901,16767.0,16766.0,2.30072262]
[1672726446911,1.42311901,16767.0,16766.0,2.30072262]
[1672726447668,0.97573103,16767.0,16766.0,2.30072262]
[1672726447934,1.42309432,16767.0,16766.0,2.30072262]
[1672726448450,1.12309432,16767.0,16766.0,2.30072262]
[1672726449221,1.1231445,16767.0,16766.0,2.30072262]
[1672726450032,1.1231445,16767.0,16766.0,1.60072262]
[1672726450304,1.1231445,16767.0,16766.0,2.30072262]
[1672726451305,0.67573103,16767.0,16766.0,2.30072262]
[1672726451558,1.12315746,16767.0,16766.0,2.30072262]
[1672726451808,0.67573103,16767.0,16766.0,2.30072262]
[1672726454182,1.12320267,16767.0,16766.0,2.30072262]
[1672726454634,0.67573103,16767.0,16766.0,2.30072262]
[1672726455924,0.67573103,16767.0,16766.0,1.68533662]
[1672726456184,0.67573103,16767.0,16766.0,0.98533662]
[1672726456547,0.67573103,16767.0,16766.0,0.98522303]
[1672726456863,0.67573103,16767.0,16766.0,1.60060903]
[1672726457076,0.67573103,16767.0,16766.0,2.30060903]
[1672726458276,0.97573103,16767.0,16766.0,2.30060903]
[1672726458789,0.67573103,16767.0,16766.0,2.30060903]
[1672726459840,0.97573103,16767.0,16766.0,2.30060903]
[1672726460095,1.12322868,16767.0,16766.0,2.30060903]
[1672726460346,1.12322783,16767.0,16766.0,2.30060903]
[1672726461139,1.12322783,16767.0,16766.0,2.30067591]
[1672726461629,1.12322783,16767.0,16766.0,2.30060903]
[1672726461962,1.12322783,16767.0,16766.0,2.34689431]
[1672726463116,0.67573103,16767.0,16766.0,1.64689431]
[1672726463379,1.12323049,16767.0,16766.0,1.64689431]
[1672726463624,1.12323049,16767.0,16766.0,1.03150831]
[1672726464112,1.12323049,16767.0,16766.0,1.73150831]
[1672726464393,0.97573103,16767.0,16766.0,2.34689431]
[1672726465134,1.51283677,16767.0,16766.0,1.41150831]
[1672726465688,2.04960477,16767.0,16766.0,1.41150831]
[1672726466158,1.51249903,16767.0,16766.0,1.41150831]
[1672726468458,2.1158634,16767.0,16766.0,1.41150831]
[1672726468711,1.51249903,16767.0,16766.0,1.41150831]
[1672726468977,2.1158634,16767.0,16766.0,1.41150831]
[1672726469735,2.6243634,16767.0,16766.0,0.75010974]
[1672726470771,2.6243634,16767.0,16766.0,0.73082178]
[1672726471526,3.2624851,16767.0,16766.0,0.73082178]
[1672726473073,2.81912073,16767.0,16766.0,0.73082178]
[1672726473359,2.83707268,16767.0,16766.0,0.73082178]
[1672726474587,3.44109326,16767.0,16766.0,0.73082178]
[1672726477604,3.44109326,16767.0,16766.0,0.03082178]
[1672726486331,3.60286867,16767.0,16766.0,0.03082178]
[1672726486569,3.44109326,16767.0,16766.0,0.03082178]
[1672726493210,2.94109326,16767.0,16766.0,0.03082178]
[1672726494228,2.94109326,16767.0,16766.0,0.03074306]
[1672726499335,2.83707268,16767.0,16766.0,0.03074306]
[1672726501874,3.44119762,16767.0,16766.0,0.03074306]
[1672726502151,2.83707268,16767.0,16766.0,0.03074306]
[1672726503466,0.74866605,16769.0,16766.0,0.03074306]
[1672726503710,0.71123246,16767.0,16766.0,0.82612408]
[1672726504012,0.71123246,16767.0,16766.0,0.58606406]
[1672726505433,1.01123246,16767.0,16766.0,0.58606406]
[1672726505690,1.02918441,16767.0,16766.0,0.58606406]
[1672726508204,1.56595241,16767.0,16766.0,0.58606406]
[1672726519173,1.56583381,16767.0,16766.0,0.58606406]
[1672726520459,1.40583381,16767.0,16766.0,0.58606406]
[1672726522748,1.38788186,16767.0,16766.0,0.58606406]
[1672726524787,1.99268982,16767.0,16766.0,0.58606406]
[1672726526034,1.38788186,16767.0,16766.0,0.58606406]
[1672726528360,1.99267585,16767.0,16766.0,0.58606406]
[1672726528853,1.38788186,16767.0,16766.0,0.58606406]
[1672726529114,1.99263443,16767.0,16766.0,0.58606406]
[1672726530356,1.99263443,16767.0,16766.0,1.28606406]
[1672726531368,1.38788186,16767.0,16766.0,1.28606406]
[1672726532152,1.38788186,16767.0,16766.0,0.73074306]
[1672726536518,1.38788186,16767.0,16766.0,0.03074306]
[1672726540496,1.38788186,16767.0,16766.0,0.5437512]
[1672726543022,1.38788186,16767.0,16766.0,0.54368556]
[1672726547174,1.40583381,16767.0,16766.0,0.54368556]
[1672726547719,1.38788186,16767.0,16766.0,0.54368556]
[1672726548502,1.40583381,16767.0,16766.0,0.54368556]
[1672726552727,1.38788186,16767.0,16766.0,0.54368556]
[1672726553775,1.40583381,16767.0,16766.0,0.54368556]
[1672726555049,1.40583381,16767.0,16766.0,0.46128656]
[1672726555787,1.40583381,16767.0,16764.0,0.67078092]
[1672726556065,0.90493776,16766.0,16765.0,0.7]
[1672726556335,0.91090222,16766.0,16765.0,1.21092701]
[1672726557104,0.91090222,16766.0,16765.0,1.26592701]
[1672726557612,0.91090222,16766.0,16765.0,0.56592701]
[1672726558607,0.91090222,16766.0,16765.0,1.26592701]
[1672726561395,1.44770222,16766.0,16765.0,1.26592701]
[1672726562151,1.44770222,16766.0,16765.0,1.88131301]
[1672726562932,1.44770222,16766.0,16765.0,1.26592701]
[1672726563179,1.98450222,16766.0,16765.0,1.26592701]
[1672726564664,1.37956446,16766.0,16765.0,1.88131301]
[1672726565170,1.22026836,16768.0,16765.0,1.88131301]
[1672726565414,0.3,16768.0,16766.0,1.13069474]
[1672726565683,0.00596446,16767.0,16766.0,0.75536876]
[1672726565934,0.00596446,16767.0,16766.0,1.21530874]
[1672726566174,0.00596446,16767.0,16766.0,1.83069474]
[1672726566696,0.00596446,16767.0,16766.0,1.21530874]
[1672726566937,0.02896446,16767.0,16766.0,1.21530874]
[1672726567429,0.03746446,16767.0,16766.0,1.21530874]
[1672726568915,0.56573246,16767.0,16766.0,0.86]
[1672726569193,1.10332072,16767.0,16766.0,2.18981614]
[1672726569449,1.10332225,16767.0,16766.0,2.18981614]
[1672726569704,1.10332148,16767.0,16766.0,1.475386]
[1672726570196,1.10332148,16767.0,16766.0,2.11164692]
[1672726571494,0.02896446,16767.0,16766.0,1.635386]
[1672726571992,0.83470396,16767.0,16766.0,1.635386]
[1672726572258,0.83470396,16767.0,16766.0,2.32429665]
[1672726573739,0.83459635,16767.0,16766.0,2.32429665]
[1672726574234,0.83459635,16767.0,16766.0,1.635386]
[1672726575515,0.83459635,16767.0,16766.0,2.31657993]
[1672726576066,0.83459635,16767.0,16766.0,1.87544602]
[1672726576258,0.35773288,16769.0,16767.0,0.5]
[1672726576510,0.35773288,16769.0,16768.0,1.00996193]
[1672726576759,1.01364332,16770.0,16768.0,1.62567517]
[1672726577003,0.00596375,16769.0,16768.0,0.85079143]
[1672726577249,0.00596375,16769.0,16768.0,0.935386]
[1672726577493,0.30596375,16769.0,16768.0,1.635386]
[1672726578004,0.30596375,16769.0,16768.0,2.26064294]
[1672726579260,0.30596375,16769.0,16768.0,2.26764294]
[1672726579513,1.14064842,16769.0,16768.0,2.13251634]
[1672726580012,0.78303375,16769.0,16768.0,2.13251634]
[1672726580763,1.14054055,16769.0,16768.0,2.13251634]
[1672726581014,0.84053895,16769.0,16768.0,2.13251634]
[1672726581265,1.14053895,16769.0,16768.0,2.13251634]
[1672726582865,0.84053895,16769.0,16768.0,2.81957216]
[1672726583356,1.28733143,16769.0,16768.0,2.81957216]
[1672726583861,0.84053895,16769.0,16768.0,2.81957216]
[1672726584125,1.28733143,16769.0,16768.0,2.13251634]
[1672726584378,1.28733143,16769.0,16768.0,2.81948642]
[1672726584630,1.28733143,16769.0,16768.0,2.13251634]
[1672726584882,0.84046006,16769.0,16768.0,2.13251634]
[1672726585133,0.84046006,16769.0,16768.0,2.81954243]
[1672726585922,0.84046006,16769.0,16768.0,2.13251634]
[1672726586250,1.58725254,16769.0,16768.0,2.13251634]
[1672726588023,1.28725254,16769.0,16768.0,2.13251634]
[1672726588776,1.58725254,16769.0,16768.0,2.13251634]
[1672726589296,1.28725254,16769.0,16768.0,2.13251634]
[1672726590823,1.58725254,16769.0,16768.0,2.13251634]
[1672726591866,1.28725254,16769.0,16768.0,2.13251634]
[1672726594385,0.84046006,16769.0,16768.0,2.13251634]
[1672726594636,1.28725254,16769.0,16768.0,2.13251634]
[1672726595428,0.84046006,16769.0,16768.0,2.13251634]
[1672726595694,1.28725254,16769.0,16768.0,2.13251634]
[1672726597980,1.28725254,16769.0,16768.0,1.43251634]
[1672726598722,1.28725254,16769.0,16768.0,2.13251634]
[1672726600564,1.28725254,16769.0,16768.0,2.13258321]
[1672726602623,0.81026143,16769.0,16768.0,2.13258321]
[1672726603877,0.45275623,16769.0,16768.0,2.13258321]
[1672726604643,0.45275623,16769.0,16768.0,2.13251634]
[1672726604896,0.30596375,16769.0,16768.0,2.13251634]
[1672726606168,0.30596375,16769.0,16768.0,1.81251634]
[1672726606422,0.84256307,16769.0,16768.0,1.23713034]
[1672726608174,1.31963307,16769.0,16768.0,1.23713034]
[1672726609442,1.31963307,16769.0,16768.0,1.23702485]
[1672726609698,0.78303375,16769.0,16768.0,1.23709172]
[1672726609950,0.78303375,16769.0,16768.0,1.23702485]
[1672726610712,0.78303375,16769.0,16768.0,1.23709172]
[1672726610959,0.78303375,16769.0,16768.0,1.23702485]
[1672726611718,0.78303375,16769.0,16768.0,1.23709172]
[1672726612972,0.78303375,16769.0,16768.0,1.23702485]
[1672726614019,1.38632296,16769.0,16768.0,1.23702485]
[1672726614507,0.78303375,16769.0,16768.0,1.23702485]
[1672726614816,0.78303375,16769.0,16768.0,0.70689451]
[1672726615060,1.90882596,16769.0,16768.0,0.70689451]
[1672726615583,1.90882596,16769.0,16768.0,0.00689451]
[1672726616360,1.86339296,16769.0,16768.0,0.00689451]
[1672726616618,1.90882596,16769.0,16768.0,0.00689451]
[1672726616882,1.86339296,16769.0,16768.0,0.00689451]
[1672726617125,1.90882596,16769.0,16768.0,0.00689451]
[1672726618120,1.86339296,16769.0,16768.0,0.00689451]
[1672726618365,1.90882596,16769.0,16768.0,0.00689451]
[1672726618604,2.06882596,16769.0,16768.0,0.00689451]
[1672726618853,2.02339296,16769.0,16768.0,0.00689451]
[1672726619620,2.52339296,16769.0,16768.0,0.00689451]
[1672726619866,2.06882596,16769.0,16768.0,0.00689451]
[1672726620572,2.02339296,16769.0,16768.0,0.00689451]
[1672726620843,2.06882596,16769.0,16768.0,0.00689451]
[1672726621085,2.02339296,16769.0,16768.0,0.00689451]
[1672726621331,2.06882596,16769.0,16768.0,0.00689451]
[1672726628466,1.90882596,16769.0,16768.0,0.00689451]
[1672726630767,1.90882596,16769.0,16768.0,0.00682041]
[1672726632316,2.30882596,16769.0,16768.0,0.00682041]
[1672726633531,1.86339296,16769.0,16768.0,0.00682041]
[1672726634290,1.26010375,16769.0,16768.0,0.00682041]
[1672726634579,1.86339296,16769.0,16768.0,0.00682041]
[1672726637371,1.86339296,16769.0,16768.0,0.57119169]
[1672726637636,1.90882596,16769.0,16768.0,0.57119169]
[1672726640553,1.86339296,16769.0,16768.0,0.57119169]
[1672726642042,1.86339296,16769.0,16768.0,0.63326173]
[1672726645112,1.86328749,16769.0,16768.0,0.63326173]
[1672726648160,1.25999828,16769.0,16768.0,0.63326173]
[1672726650460,1.86449406,16769.0,16768.0,0.63326173]
[1672726650704,1.25999828,16769.0,16768.0,0.63326173]
[1672726652441,1.25991394,16769.0,16768.0,0.63326173]
[1672726658009,1.86475327,16769.0,16768.0,0.63326173]
[1672726667171,1.92707112,16769.0,16768.0,0.63326173]
[1672726667675,1.86475327,16769.0,16768.0,0.63326173]
[1672726668429,1.86475327,16769.0,16768.0,1.33326173]
[1672726671530,1.86475327,16769.0,16768.0,0.63326173]
[1672726674386,1.86475327,16769.0,16768.0,0.63318405]
[1672726676434,1.25991394,16769.0,16768.0,1.31790791]
[1672726676650,1.79734639,16769.0,16768.0,1.94761805]
[1672726676914,1.79734639,16769.0,16768.0,2.63177386]
[1672726676915,1.25991394,16769.0,16768.0,2.63177386]